[Event "Late-Titled-Tuesday-Blitz-April-02-2024"]
[Site "Chess.com"]
[Date "2024.04.02"]
[Round "1"]
[White "jstopa4"]
[Black "JERO-8914"]
[Result "0-1"]
[WhiteElo "2752"]
[BlackElo "2444"]
[TimeControl "180+1"]
[EndTime "14:04:41 PDT"]
[Termination "JERO-8914 won by resignation"]

1. Nf3 {[%clk 0:02:59.8]} 1... d5 {[%clk 0:02:56.2]} 2. c4 {[%clk 0:02:59.2]}
2... e6 {[%clk 0:02:55.5]} 3. e3 {[%clk 0:02:57]} 3... Nf6 {[%clk 0:02:55.1]} 4.
Nc3 {[%clk 0:02:57]} 4... c5 {[%clk 0:02:55.2]} 5. cxd5 {[%clk 0:02:56.5]} 5...
exd5 {[%clk 0:02:55.2]} 6. d4 {[%clk 0:02:56.9]} 6... Nc6 {[%clk 0:02:53.8]} 7.
Be2 {[%clk 0:02:53.3]} 7... Be7 {[%clk 0:02:49.2]} 8. dxc5 {[%clk 0:02:51.3]}
8... Bxc5 {[%clk 0:02:49.1]} 9. O-O {[%clk 0:02:51.6]} 9... O-O {[%clk 0:02:49]}
10. Nb5 {[%clk 0:02:48.6]} 10... Be6 {[%clk 0:02:46.6]} 11. b3 {[%clk
0:02:48.3]} 11... Ne4 {[%clk 0:02:42.1]} 12. Bb2 {[%clk 0:02:47.4]} 12... Be7
{[%clk 0:02:42.2]} 13. Nbd4 {[%clk 0:02:45.1]} 13... Bf6 {[%clk 0:02:40.4]} 14.
a3 {[%clk 0:02:31]} 14... Rc8 {[%clk 0:02:35.7]} 15. Bd3 {[%clk 0:02:07.2]}
15... Bg4 {[%clk 0:02:26.4]} 16. h3 {[%clk 0:02:00.4]} 16... Bxf3 {[%clk
0:02:23.5]} 17. gxf3 {[%clk 0:01:50.2]} 17... Bxd4 {[%clk 0:02:20.2]} 18. Bxd4
{[%clk 0:01:46.7]} 18... Ng5 {[%clk 0:02:14.8]} 19. Bf5 {[%clk 0:01:37.8]} 19...
Nxd4 {[%clk 0:02:09.7]} 20. exd4 {[%clk 0:01:32.8]} 20... Rc3 {[%clk 0:02:01.4]}
21. Bg4 {[%clk 0:01:15.1]} 21... f5 {[%clk 0:01:34.8]} 22. Qd2 {[%clk
0:01:13.7]} 22... Rxf3 {[%clk 0:01:26.1]} 23. h4 {[%clk 0:01:08.1]} 23... Ne4
{[%clk 0:01:20.8]} 0-1

[Event "Late-Titled-Tuesday-Blitz-April-02-2024"]
[Site "Chess.com"]
[Date "2024.04.02"]
[Round "1"]
[White "Bryanl106"]
[Black "egnfanclub"]
[Result "1-0"]
[WhiteElo "2671"]
[BlackElo "2378"]
[TimeControl "180+1"]
[EndTime "14:04:42 PDT"]
[Termination "Bryanl106 won by resignation"]

1. e4 {[%clk 0:03:00.1]} 1... e5 {[%clk 0:02:59.8]} 2. Nf3 {[%clk 0:03:00.3]}
2... Nc6 {[%clk 0:02:59.5]} 3. Nc3 {[%clk 0:03:01]} 3... Nf6 {[%clk 0:02:59.3]}
4. a3 {[%clk 0:03:01.6]} 4... d5 {[%clk 0:02:58.5]} 5. Bb5 {[%clk 0:03:01.7]}
5... dxe4 {[%clk 0:02:51.9]} 6. Nxe5 {[%clk 0:03:00.2]} 6... Bd7 {[%clk
0:02:46.4]} 7. Bxc6 {[%clk 0:02:58.7]} 7... Bxc6 {[%clk 0:02:43.6]} 8. Nxc6
{[%clk 0:02:58]} 8... bxc6 {[%clk 0:02:44.5]} 9. Qe2 {[%clk 0:02:56.8]} 9... Qd4
{[%clk 0:02:36.4]} 10. d3 {[%clk 0:02:55.9]} 10... Be7 {[%clk 0:01:58]} 11. dxe4
{[%clk 0:02:51.6]} 11... O-O {[%clk 0:01:57.2]} 12. O-O {[%clk 0:02:50.3]} 12...
Rfe8 {[%clk 0:01:57]} 13. Be3 {[%clk 0:02:48.2]} 13... Qe5 {[%clk 0:01:55.1]}
14. f3 {[%clk 0:02:39.2]} 14... Rab8 {[%clk 0:01:48.5]} 15. Na4 {[%clk
0:02:33.9]} 15... a5 {[%clk 0:01:40.4]} 16. Rad1 {[%clk 0:02:19.6]} 16... Bd6
{[%clk 0:01:40.4]} 17. g3 {[%clk 0:02:19.3]} 17... h5 {[%clk 0:01:30]} 18. Bd4
{[%clk 0:02:16.5]} 18... Qe7 {[%clk 0:01:28.9]} 19. Qf2 {[%clk 0:02:05.8]} 19...
h4 {[%clk 0:01:25.3]} 20. Rfe1 {[%clk 0:02:03.3]} 20... hxg3 {[%clk 0:01:15]}
21. hxg3 {[%clk 0:02:04.2]} 21... Nd7 {[%clk 0:01:06]} 22. e5 {[%clk 0:01:53.4]}
22... Nxe5 {[%clk 0:01:05.9]} 23. f4 {[%clk 0:01:39.2]} 23... Ng4 {[%clk
0:00:59.9]} 24. Rxe7 {[%clk 0:01:37.3]} 24... Nxf2 {[%clk 0:00:59.8]} 25. Rxe8+
{[%clk 0:01:37.8]} 25... Rxe8 {[%clk 0:00:59.8]} 26. Kxf2 {[%clk 0:01:38.7]} 1-0

[Event "Late-Titled-Tuesday-Blitz-April-02-2024"]
[Site "Chess.com"]
[Date "2024.04.02"]
[Round "1"]
[White "Kavyev_Ruslan"]
[Black "RodokininEV"]
[Result "0-1"]
[WhiteElo "2396"]
[BlackElo "2697"]
[TimeControl "180+1"]
[EndTime "14:04:44 PDT"]
[Termination "RodokininEV won by checkmate"]

1. d4 {[%clk 0:03:00.9]} 1... Nf6 {[%clk 0:02:59.7]} 2. Nf3 {[%clk 0:03:01.4]}
2... g6 {[%clk 0:03:00]} 3. c4 {[%clk 0:03:01.6]} 3... Bg7 {[%clk 0:03:00.5]} 4.
g3 {[%clk 0:03:02]} 4... d6 {[%clk 0:03:01.1]} 5. Bg2 {[%clk 0:03:02.4]} 5...
O-O {[%clk 0:03:02]} 6. O-O {[%clk 0:03:02.5]} 6... Nc6 {[%clk 0:03:02.4]} 7.
Nc3 {[%clk 0:03:01]} 7... a6 {[%clk 0:03:02.4]} 8. e4 {[%clk 0:02:59.9]} 8...
Bg4 {[%clk 0:03:01.9]} 9. h3 {[%clk 0:02:58.9]} 9... Bxf3 {[%clk 0:03:01.9]} 10.
Bxf3 {[%clk 0:02:59.8]} 10... Nd7 {[%clk 0:03:02.5]} 11. Be3 {[%clk 0:02:57.7]}
11... e5 {[%clk 0:03:02.6]} 12. d5 {[%clk 0:02:57.4]} 12... Nd4 {[%clk
0:03:02.9]} 13. Bg2 {[%clk 0:02:56.1]} 13... c5 {[%clk 0:03:03]} 14. a3 {[%clk
0:02:45.7]} 14... b5 {[%clk 0:03:02.3]} 15. cxb5 {[%clk 0:02:44.6]} 15... axb5
{[%clk 0:03:03.2]} 16. Nxb5 {[%clk 0:02:44.9]} 16... Nxb5 {[%clk 0:03:01.3]} 17.
Qd3 {[%clk 0:02:40.4]} 17... Nd4 {[%clk 0:02:58.7]} 18. b4 {[%clk 0:02:38.7]}
18... Qb6 {[%clk 0:02:52.3]} 19. bxc5 {[%clk 0:02:36.9]} 19... Nxc5 {[%clk
0:02:52.8]} 20. Qd2 {[%clk 0:02:35.2]} 20... Ncb3 {[%clk 0:02:50.9]} 21. Qc3
{[%clk 0:02:35.4]} 21... Nxa1 {[%clk 0:02:49]} 22. Rxa1 {[%clk 0:02:36.3]} 22...
Rfc8 {[%clk 0:02:47.7]} 23. Qd2 {[%clk 0:02:34.3]} 23... Qa5 {[%clk 0:02:44.5]}
24. Qd3 {[%clk 0:02:31.9]} 24... Rc3 {[%clk 0:02:41.5]} 25. Qb1 {[%clk 0:02:30]}
25... Rxa3 {[%clk 0:02:39.4]} 26. Rxa3 {[%clk 0:02:29.5]} 26... Qxa3 {[%clk
0:02:40.3]} 27. Kh2 {[%clk 0:02:29.1]} 27... Qb3 {[%clk 0:02:27.7]} 28. Qc1
{[%clk 0:02:24.7]} 28... Qc2 {[%clk 0:02:17.2]} 29. Qe1 {[%clk 0:02:23.1]} 29...
h5 {[%clk 0:02:14.9]} 30. h4 {[%clk 0:02:22.3]} 30... Kh7 {[%clk 0:02:01.3]} 31.
Qb4 {[%clk 0:02:22.5]} 31... Qc7 {[%clk 0:01:53.7]} 32. Qb2 {[%clk 0:02:16.3]}
32... Rb8 {[%clk 0:01:42.4]} 33. Qa3 {[%clk 0:02:15.8]} 33... Bh6 {[%clk
0:01:39]} 34. f4 {[%clk 0:02:13.1]} 34... Rb3 {[%clk 0:01:37.2]} 35. Qa4 {[%clk
0:02:09]} 35... Rxe3 {[%clk 0:01:34.8]} 36. f5 {[%clk 0:02:08.2]} 36... Re2
{[%clk 0:01:25.4]} 37. Qe8 {[%clk 0:02:03.9]} 37... Bg7 {[%clk 0:01:18.6]} 38.
Kh3 {[%clk 0:01:59.3]} 38... Rxg2 {[%clk 0:01:09.6]} 39. Kxg2 {[%clk 0:01:58.4]}
39... Qc2+ {[%clk 0:01:09.5]} 40. Kh3 {[%clk 0:01:57.5]} 40... Qxe4 {[%clk
0:01:09.2]} 41. fxg6+ {[%clk 0:01:54.8]} 41... fxg6 {[%clk 0:01:10.1]} 42. Qe7
{[%clk 0:01:50.4]} 42... Qh1# {[%clk 0:01:09.2]} 0-1

[Event "Late-Titled-Tuesday-Blitz-April-02-2024"]
[Site "Chess.com"]
[Date "2024.04.02"]
[Round "1"]
[White "Shahdad2007"]
[Black "mestrefeitosa19"]
[Result "1-0"]
[WhiteElo "2585"]
[BlackElo "2240"]
[TimeControl "180+1"]
[EndTime "14:04:58 PDT"]
[Termination "Shahdad2007 won by resignation"]

1. Nf3 {[%clk 0:02:59.9]} 1... d5 {[%clk 0:02:58.9]} 2. c4 {[%clk 0:02:58.5]}
2... e6 {[%clk 0:02:57.3]} 3. g3 {[%clk 0:02:58.1]} 3... Nf6 {[%clk 0:02:57.1]}
4. Bg2 {[%clk 0:02:58.4]} 4... Be7 {[%clk 0:02:56.9]} 5. O-O {[%clk 0:02:58.9]}
5... O-O {[%clk 0:02:56.6]} 6. d4 {[%clk 0:02:59.2]} 6... b6 {[%clk 0:02:52.4]}
7. Ne5 {[%clk 0:02:57.8]} 7... Bb7 {[%clk 0:02:49.8]} 8. Nc3 {[%clk 0:02:58.7]}
8... Nbd7 {[%clk 0:02:48.6]} 9. Bf4 {[%clk 0:02:46.5]} 9... Nh5 {[%clk
0:02:42.2]} 10. e3 {[%clk 0:02:39.9]} 10... Nxf4 {[%clk 0:02:41.1]} 11. gxf4
{[%clk 0:02:40.8]} 11... Nxe5 {[%clk 0:02:31.8]} 12. fxe5 {[%clk 0:02:39.2]}
12... c6 {[%clk 0:02:20.4]} 13. cxd5 {[%clk 0:02:37.9]} 13... exd5 {[%clk
0:02:13.9]} 14. f4 {[%clk 0:02:37.7]} 14... Bc8 {[%clk 0:02:08.6]} 15. f5 {[%clk
0:02:36.6]} 15... f6 {[%clk 0:02:07.7]} 16. e6 {[%clk 0:02:23.5]} 16... Bd6
{[%clk 0:02:05.1]} 17. Qh5 {[%clk 0:02:15.5]} 17... Qe8 {[%clk 0:01:58]} 18.
Qxe8 {[%clk 0:02:13]} 18... Rxe8 {[%clk 0:01:57.3]} 19. e4 {[%clk 0:02:13.9]}
19... Ba6 {[%clk 0:01:35.9]} 20. Rfe1 {[%clk 0:02:03.6]} 20... dxe4 {[%clk
0:01:35.6]} 21. Nxe4 {[%clk 0:02:03.3]} 21... Bb4 {[%clk 0:01:32.1]} 22. Nc3
{[%clk 0:02:01.7]} 22... Rac8 {[%clk 0:01:30.3]} 23. a3 {[%clk 0:01:58.2]} 23...
Bd6 {[%clk 0:01:19.3]} 24. Rad1 {[%clk 0:01:57.5]} 24... Re7 {[%clk 0:01:17.3]}
25. d5 {[%clk 0:01:46.5]} 25... c5 {[%clk 0:01:13.2]} 26. Bf1 {[%clk 0:01:44.6]}
26... Bxf1 {[%clk 0:01:07.5]} 27. Rxf1 {[%clk 0:01:44.3]} 27... a6 {[%clk
0:01:07.5]} 28. Ne4 {[%clk 0:01:43.4]} 28... Be5 {[%clk 0:01:06.8]} 29. d6
{[%clk 0:01:42.6]} 29... Bd4+ {[%clk 0:00:49.2]} 30. Rxd4 {[%clk 0:01:42.6]}
30... cxd4 {[%clk 0:00:50.1]} 31. dxe7 {[%clk 0:01:43.4]} 31... Re8 {[%clk
0:00:49.7]} 32. Rc1 {[%clk 0:01:43.6]} 32... Rxe7 {[%clk 0:00:50.1]} 33. Rc8+
{[%clk 0:01:43.4]} 1-0

[Event "Late-Titled-Tuesday-Blitz-April-02-2024"]
[Site "Chess.com"]
[Date "2024.04.02"]
[Round "1"]
[White "combidharma"]
[Black "ural58"]
[Result "1-0"]
[WhiteElo "2856"]
[BlackElo "2480"]
[TimeControl "180+1"]
[EndTime "14:05:02 PDT"]
[Termination "combidharma won by resignation"]

1. e4 {[%clk 0:02:58.6]} 1... d5 {[%clk 0:02:58.9]} 2. exd5 {[%clk 0:02:49.2]}
2... Qxd5 {[%clk 0:02:58.7]} 3. Nc3 {[%clk 0:02:47.9]} 3... Qd6 {[%clk
0:02:58.6]} 4. d4 {[%clk 0:02:48.1]} 4... c6 {[%clk 0:02:58.6]} 5. Bc4 {[%clk
0:02:47.1]} 5... Be6 {[%clk 0:02:58.5]} 6. Bxe6 {[%clk 0:02:38.8]} 6... Qxe6+
{[%clk 0:02:57.9]} 7. Nge2 {[%clk 0:02:39.4]} 7... Nf6 {[%clk 0:02:56.4]} 8. O-O
{[%clk 0:02:39.5]} 8... Qd7 {[%clk 0:02:27.8]} 9. Bg5 {[%clk 0:02:18.4]} 9... e6
{[%clk 0:02:20.5]} 10. Bxf6 {[%clk 0:02:15.5]} 10... gxf6 {[%clk 0:02:20.5]} 11.
Nf4 {[%clk 0:02:16.2]} 11... Be7 {[%clk 0:02:19.2]} 12. Ne4 {[%clk 0:02:12]}
12... f5 {[%clk 0:02:13.6]} 13. Nc5 {[%clk 0:02:09.5]} 13... Bxc5 {[%clk
0:02:13.6]} 14. dxc5 {[%clk 0:02:10.4]} 14... Qxd1 {[%clk 0:02:13]} 15. Raxd1
{[%clk 0:02:11.3]} 15... Nd7 {[%clk 0:02:13]} 16. b4 {[%clk 0:02:11.4]} 16...
O-O-O {[%clk 0:02:09.9]} 17. Nd3 {[%clk 0:01:59]} 17... f6 {[%clk 0:02:04.5]}
18. Nf4 {[%clk 0:01:56.3]} 18... e5 {[%clk 0:01:58.6]} 19. Ne6 {[%clk
0:01:55.1]} 19... Rde8 {[%clk 0:01:58.3]} 20. Ng7 {[%clk 0:01:55.3]} 20... Reg8
{[%clk 0:01:49.5]} 21. Nxf5 {[%clk 0:01:55.1]} 21... Rg4 {[%clk 0:01:49.6]} 22.
c3 {[%clk 0:01:45.5]} 22... b6 {[%clk 0:01:40.1]} 23. Rd6 {[%clk 0:01:44.6]}
23... bxc5 {[%clk 0:01:36.3]} 24. Rfd1 {[%clk 0:01:44]} 24... Nb8 {[%clk
0:01:33.9]} 25. bxc5 {[%clk 0:01:40.8]} 25... Rc4 {[%clk 0:01:25.7]} 26. Rxf6
{[%clk 0:01:37]} 26... Rxc5 {[%clk 0:01:20.3]} 27. Rf7 {[%clk 0:01:35.2]} 27...
Re8 {[%clk 0:00:45]} 28. Nd6+ {[%clk 0:01:33.7]} 1-0

[Event "Late-Titled-Tuesday-Blitz-April-02-2024"]
[Site "Chess.com"]
[Date "2024.04.02"]
[Round "1"]
[White "PetrolulSah"]
[Black "Pingah9"]
[Result "0-1"]
[WhiteElo "2223"]
[BlackElo "2582"]
[TimeControl "180+1"]
[EndTime "14:05:08 PDT"]
[Termination "Pingah9 won by resignation"]

1. d4 {[%clk 0:02:59.6]} 1... g6 {[%clk 0:02:59.5]} 2. e4 {[%clk 0:02:59]} 2...
Bg7 {[%clk 0:02:59.4]} 3. c4 {[%clk 0:02:59.1]} 3... d6 {[%clk 0:02:57.1]} 4.
Nc3 {[%clk 0:02:59.1]} 4... Nd7 {[%clk 0:02:57.3]} 5. Be2 {[%clk 0:02:57.8]}
5... e5 {[%clk 0:02:54.6]} 6. d5 {[%clk 0:02:57.3]} 6... a5 {[%clk 0:02:54.2]}
7. Be3 {[%clk 0:02:54.6]} 7... Ne7 {[%clk 0:02:52.2]} 8. h4 {[%clk 0:02:49.3]}
8... h6 {[%clk 0:02:49]} 9. Qd2 {[%clk 0:02:41.6]} 9... f5 {[%clk 0:02:48.6]}
10. f3 {[%clk 0:02:23.3]} 10... b6 {[%clk 0:02:32.2]} 11. Nh3 {[%clk 0:02:23]}
11... Nc5 {[%clk 0:02:29.7]} 12. O-O-O {[%clk 0:02:18.5]} 12... Bd7 {[%clk
0:02:19.4]} 13. Kb1 {[%clk 0:02:16.9]} 13... a4 {[%clk 0:02:15.2]} 14. Rc1
{[%clk 0:02:16.3]} 14... Qb8 {[%clk 0:02:13.3]} 15. Bg1 {[%clk 0:02:04.1]} 15...
O-O {[%clk 0:02:07]} 16. Nf2 {[%clk 0:02:03.2]} 16... fxe4 {[%clk 0:01:45.4]}
17. Nfxe4 {[%clk 0:01:56.7]} 17... Nf5 {[%clk 0:01:43.1]} 18. g4 {[%clk
0:01:41]} 18... Nd4 {[%clk 0:01:41.7]} 19. Be3 {[%clk 0:01:41]} 19... Ncb3
{[%clk 0:01:28.3]} 20. axb3 {[%clk 0:01:32.9]} 20... axb3 {[%clk 0:01:29.2]} 21.
Rcf1 {[%clk 0:01:24.6]} 21... Qa7 {[%clk 0:01:10.8]} 22. Kc1 {[%clk 0:01:24]}
22... Qa1+ {[%clk 0:01:06.8]} 23. Nb1 {[%clk 0:01:23.9]} 23... Nc2 {[%clk
0:01:04.3]} 24. Bxh6 {[%clk 0:01:07.1]} 24... Qxb1+ {[%clk 0:01:03.3]} 0-1

[Event "Late-Titled-Tuesday-Blitz-April-02-2024"]
[Site "Chess.com"]
[Date "2024.04.02"]
[Round "1"]
[White "Romkachess"]
[Black "N_I_Chess"]
[Result "1-0"]
[WhiteElo "2680"]
[BlackElo "2388"]
[TimeControl "180+1"]
[EndTime "14:05:13 PDT"]
[Termination "Romkachess won by resignation"]

1. e4 {[%clk 0:03:00.9]} 1... Nf6 {[%clk 0:02:09.1]} 2. e5 {[%clk 0:02:59.5]}
2... Nd5 {[%clk 0:02:07]} 3. c4 {[%clk 0:03:00.4]} 3... Nb6 {[%clk 0:01:56.8]}
4. d4 {[%clk 0:02:59]} 4... d6 {[%clk 0:01:56.8]} 5. exd6 {[%clk 0:02:58.5]}
5... cxd6 {[%clk 0:01:57.7]} 6. Nf3 {[%clk 0:02:57.1]} 6... g6 {[%clk
0:01:54.6]} 7. Nc3 {[%clk 0:02:54.1]} 7... Bg7 {[%clk 0:01:54.8]} 8. Be3 {[%clk
0:02:48.3]} 8... O-O {[%clk 0:01:54.1]} 9. Qd2 {[%clk 0:02:41]} 9... Bf5 {[%clk
0:01:25.8]} 10. h4 {[%clk 0:02:38]} 10... h5 {[%clk 0:01:23.1]} 11. Bd3 {[%clk
0:02:34.6]} 11... Qd7 {[%clk 0:00:57.3]} 12. b3 {[%clk 0:02:25.3]} 12... Nc6
{[%clk 0:00:46.7]} 13. Rc1 {[%clk 0:02:21.2]} 13... e5 {[%clk 0:00:33.4]} 14.
dxe5 {[%clk 0:01:50.3]} 14... dxe5 {[%clk 0:00:34.3]} 15. Bxf5 {[%clk
0:01:48.7]} 15... Qxf5 {[%clk 0:00:35.2]} 16. Qc2 {[%clk 0:01:49.3]} 16... Qg4
{[%clk 0:00:26]} 17. O-O {[%clk 0:01:42.2]} 17... Nd4 {[%clk 0:00:21.4]} 18.
Bxd4 {[%clk 0:01:37.7]} 18... exd4 {[%clk 0:00:22.3]} 19. Ne4 {[%clk 0:01:37.8]}
19... Qxh4 {[%clk 0:00:20.6]} 20. Nxh4 {[%clk 0:01:24.2]} 1-0

[Event "Late-Titled-Tuesday-Blitz-April-02-2024"]
[Site "Chess.com"]
[Date "2024.04.02"]
[Round "1"]
[White "Yeritsyaan"]
[Black "NitaLucian"]
[Result "1-0"]
[WhiteElo "2642"]
[BlackElo "2330"]
[TimeControl "180+1"]
[EndTime "14:05:21 PDT"]
[Termination "Yeritsyaan won by resignation"]

1. e4 {[%clk 0:02:57.6]} 1... d6 {[%clk 0:03:00.9]} 2. Nc3 {[%clk 0:02:56.9]}
2... Nf6 {[%clk 0:03:01.8]} 3. d3 {[%clk 0:02:55.7]} 3... e5 {[%clk 0:03:02.3]}
4. g3 {[%clk 0:02:55]} 4... Bg4 {[%clk 0:03:01.2]} 5. f3 {[%clk 0:02:54.1]} 5...
Be6 {[%clk 0:03:00.4]} 6. Bg2 {[%clk 0:02:54.2]} 6... d5 {[%clk 0:03:00.6]} 7.
Nge2 {[%clk 0:02:54.1]} 7... d4 {[%clk 0:03:00.8]} 8. Nb1 {[%clk 0:02:53.5]}
8... c5 {[%clk 0:03:00.9]} 9. Nd2 {[%clk 0:02:52.8]} 9... Nc6 {[%clk 0:03:00.5]}
10. O-O {[%clk 0:02:53]} 10... Bd6 {[%clk 0:03:00.3]} 11. h3 {[%clk 0:02:51.6]}
11... O-O {[%clk 0:02:59.7]} 12. f4 {[%clk 0:02:51.1]} 12... Qc8 {[%clk
0:02:56.2]} 13. f5 {[%clk 0:02:50.8]} 13... Bd7 {[%clk 0:02:55.8]} 14. g4 {[%clk
0:02:49.6]} 14... Ne8 {[%clk 0:02:54.7]} 15. Ng3 {[%clk 0:02:47.4]} 15... f6
{[%clk 0:02:54.6]} 16. Nf3 {[%clk 0:02:47.4]} 16... Kf7 {[%clk 0:02:54.7]} 17.
h4 {[%clk 0:02:47]} 17... Ke7 {[%clk 0:02:54.7]} 18. c3 {[%clk 0:02:45.9]} 18...
Kd8 {[%clk 0:02:52.9]} 19. a3 {[%clk 0:02:41.6]} 19... dxc3 {[%clk 0:02:48.7]}
20. bxc3 {[%clk 0:02:41.5]} 20... b6 {[%clk 0:02:48.1]} 21. Be3 {[%clk
0:02:40.9]} 21... Qa6 {[%clk 0:02:47.1]} 22. Qc2 {[%clk 0:02:37.6]} 22... Rc8
{[%clk 0:02:46.1]} 23. a4 {[%clk 0:02:37.5]} 23... Na5 {[%clk 0:02:45]} 24. Nd2
{[%clk 0:02:36.4]} 24... Be7 {[%clk 0:02:44]} 25. Rfd1 {[%clk 0:02:34.6]} 25...
Nd6 {[%clk 0:02:43.9]} 26. Bf1 {[%clk 0:02:31.3]} 26... Qb7 {[%clk 0:02:42]} 27.
Qa2 {[%clk 0:02:30.5]} 27... Bc6 {[%clk 0:02:40.3]} 28. Nc4 {[%clk 0:02:27.3]}
28... Ndxc4 {[%clk 0:02:39.6]} 29. dxc4+ {[%clk 0:02:28.2]} 29... Kc7 {[%clk
0:02:38.9]} 30. Rd5 {[%clk 0:02:27.9]} 30... Bxd5 {[%clk 0:02:34.4]} 31. cxd5
{[%clk 0:02:28.8]} 31... Bd6 {[%clk 0:02:31.6]} 32. Rb1 {[%clk 0:02:23.4]} 32...
Kd8 {[%clk 0:02:31.4]} 33. Bb5 {[%clk 0:02:21.1]} 33... Qc7 {[%clk 0:02:29.9]}
34. Ba6 {[%clk 0:02:19.2]} 34... Rb8 {[%clk 0:02:28.1]} 35. Qe2 {[%clk
0:02:17.9]} 35... Ke7 {[%clk 0:02:27.5]} 36. Kh2 {[%clk 0:02:17]} 36... c4
{[%clk 0:02:25.1]} 37. Rb5 {[%clk 0:02:10.7]} 37... Rfd8 {[%clk 0:02:21.2]} 38.
g5 {[%clk 0:02:10]} 38... g6 {[%clk 0:02:15.1]} 39. gxf6+ {[%clk 0:02:09.3]}
39... Kxf6 {[%clk 0:02:14.3]} 40. Bg5+ {[%clk 0:02:08.2]} 40... Kg7 {[%clk
0:02:13.8]} 41. h5 {[%clk 0:02:02]} 41... Be7 {[%clk 0:02:11.7]} 42. Qg4 {[%clk
0:01:52.6]} 42... Bxg5 {[%clk 0:02:08.5]} 43. Qxg5 {[%clk 0:01:53.5]} 43... Rd6
{[%clk 0:02:06.4]} 44. fxg6 {[%clk 0:01:44.5]} 44... hxg6 {[%clk 0:02:05.6]} 45.
Nf5+ {[%clk 0:01:43.3]} 45... Kh7 {[%clk 0:02:01.9]} 46. hxg6+ {[%clk
0:01:31.8]} 46... Rxg6 {[%clk 0:01:59.4]} 47. Qh5+ {[%clk 0:01:31.4]} 47... Kg8
{[%clk 0:01:54.3]} 48. Qxg6+ {[%clk 0:01:31.4]} 48... Kf8 {[%clk 0:01:53.1]} 49.
d6 {[%clk 0:01:28.4]} 49... Qf7 {[%clk 0:01:50.6]} 50. Qh6+ {[%clk 0:01:25]}
50... Ke8 {[%clk 0:01:46.4]} 51. Rxe5+ {[%clk 0:01:24.7]} 51... Kd8 {[%clk
0:01:39.3]} 52. Qg5+ {[%clk 0:01:23.3]} 52... Kd7 {[%clk 0:01:37.4]} 53. Re7+
{[%clk 0:01:23.5]} 1-0

[Event "Late-Titled-Tuesday-Blitz-April-02-2024"]
[Site "Chess.com"]
[Date "2024.04.02"]
[Round "1"]
[White "akanga001"]
[Black "guillembaches"]
[Result "0-1"]
[WhiteElo "2137"]
[BlackElo "2566"]
[TimeControl "180+1"]
[EndTime "14:05:21 PDT"]
[Termination "guillembaches won by resignation"]

1. d4 {[%clk 0:00:41.4]} 1... d5 {[%clk 0:02:59.3]} 2. c4 {[%clk 0:00:41.3]}
2... e6 {[%clk 0:02:59.9]} 3. Nc3 {[%clk 0:00:40.4]} 3... a6 {[%clk 0:03:00.2]}
4. cxd5 {[%clk 0:00:41.3]} 4... exd5 {[%clk 0:03:00.7]} 5. Nf3 {[%clk
0:00:40.1]} 5... Nf6 {[%clk 0:03:00.8]} 6. Bg5 {[%clk 0:00:40.1]} 6... Be6
{[%clk 0:03:01.1]} 7. e3 {[%clk 0:00:40.2]} 7... Nbd7 {[%clk 0:03:01.2]} 8. Rc1
{[%clk 0:00:40.1]} 8... Bd6 {[%clk 0:03:00.8]} 9. Bd3 {[%clk 0:00:39.6]} 9... c6
{[%clk 0:03:01]} 10. O-O {[%clk 0:00:39.1]} 10... Qc7 {[%clk 0:03:01.1]} 11. h3
{[%clk 0:00:39.3]} 11... h6 {[%clk 0:03:00.8]} 12. Bxf6 {[%clk 0:00:38.6]} 12...
Nxf6 {[%clk 0:03:01.3]} 13. a3 {[%clk 0:00:34.1]} 13... O-O {[%clk 0:02:58.1]}
14. b4 {[%clk 0:00:33.5]} 14... Qe7 {[%clk 0:02:56.9]} 15. Na4 {[%clk
0:00:32.3]} 15... Rad8 {[%clk 0:02:53.2]} 16. Nc5 {[%clk 0:00:32.3]} 16... Bc8
{[%clk 0:02:53.3]} 17. Re1 {[%clk 0:00:30.5]} 17... Ne4 {[%clk 0:02:52.3]} 18.
Qc2 {[%clk 0:00:25.8]} 18... f5 {[%clk 0:02:49.8]} 19. Qb3 {[%clk 0:00:19.7]}
19... Kh8 {[%clk 0:02:39.7]} 20. Na4 {[%clk 0:00:18.9]} 20... Bb8 {[%clk
0:02:34.6]} 21. Nb6 {[%clk 0:00:17.5]} 21... Be6 {[%clk 0:02:33.9]} 22. Na4
{[%clk 0:00:17.2]} 22... g5 {[%clk 0:02:25.7]} 23. Nc5 {[%clk 0:00:16.8]} 23...
Bc8 {[%clk 0:02:22.7]} 24. Bxe4 {[%clk 0:00:16.4]} 24... fxe4 {[%clk 0:02:22.8]}
25. Nd2 {[%clk 0:00:16.9]} 25... Qd6 {[%clk 0:02:17.7]} 26. Nf1 {[%clk
0:00:16.6]} 26... Rf6 {[%clk 0:02:08.5]} 27. Qd1 {[%clk 0:00:17]} 27... Rdf8
{[%clk 0:02:05.9]} 28. Qh5 {[%clk 0:00:17.5]} 28... Rxf2 {[%clk 0:01:57.4]} 29.
h4 {[%clk 0:00:14.4]} 29... Rxf1+ {[%clk 0:01:55]} 0-1

[Event "Late-Titled-Tuesday-Blitz-April-02-2024"]
[Site "Chess.com"]
[Date "2024.04.02"]
[Round "1"]
[White "albi1999"]
[Black "EdmundPlayer"]
[Result "1-0"]
[WhiteElo "2604"]
[BlackElo "2273"]
[TimeControl "180+1"]
[EndTime "14:05:30 PDT"]
[Termination "albi1999 won by checkmate"]

1. Nf3 {[%clk 0:03:00.9]} 1... c5 {[%clk 0:02:55.2]} 2. c4 {[%clk 0:02:59.6]}
2... Nc6 {[%clk 0:02:53.3]} 3. Nc3 {[%clk 0:02:58.8]} 3... e5 {[%clk 0:02:40.5]}
4. e3 {[%clk 0:02:54.3]} 4... d6 {[%clk 0:02:34.3]} 5. d4 {[%clk 0:02:53.7]}
5... Bg4 {[%clk 0:02:23.3]} 6. Be2 {[%clk 0:02:45.2]} 6... cxd4 {[%clk
0:01:58.7]} 7. exd4 {[%clk 0:02:46.1]} 7... Bxf3 {[%clk 0:01:54.3]} 8. Bxf3
{[%clk 0:02:43.2]} 8... Nxd4 {[%clk 0:01:54.3]} 9. Bxb7 {[%clk 0:02:42.3]} 9...
Rb8 {[%clk 0:01:54.4]} 10. Bd5 {[%clk 0:02:16.6]} 10... Nf6 {[%clk 0:01:44.9]}
11. O-O {[%clk 0:02:16.3]} 11... Be7 {[%clk 0:01:23.8]} 12. Be3 {[%clk
0:02:15.1]} 12... Rxb2 {[%clk 0:01:18.7]} 13. Bxd4 {[%clk 0:02:02.9]} 13... Nxd5
{[%clk 0:01:10.6]} 14. Nxd5 {[%clk 0:01:51]} 14... exd4 {[%clk 0:01:08.3]} 15.
Qxd4 {[%clk 0:01:51.9]} 15... Rb7 {[%clk 0:00:59.6]} 16. Qxg7 {[%clk 0:01:49.5]}
16... Kd7 {[%clk 0:00:54.6]} 17. Nxe7 {[%clk 0:01:37.5]} 17... Kxe7 {[%clk
0:00:53.1]} 18. Rfe1+ {[%clk 0:01:37.5]} 18... Kd7 {[%clk 0:00:53.2]} 19. Qxf7+
{[%clk 0:01:37.3]} 19... Kc8 {[%clk 0:00:53.1]} 20. Qd5 {[%clk 0:01:32.8]} 20...
Rf8 {[%clk 0:00:48]} 21. Rab1 {[%clk 0:01:31.4]} 21... Rff7 {[%clk 0:00:29.6]}
22. c5 {[%clk 0:01:22.7]} 22... Qh4 {[%clk 0:00:19.1]} 23. Qc6+ {[%clk
0:01:19.7]} 23... Kd8 {[%clk 0:00:16.2]} 24. Re8# {[%clk 0:01:20]} 1-0